[Event "Titled Tuesday Blitz January 03 Early 2023"]
[White "Ivanova, Karina"]
[Black "Bashirli, Saadat"]
[WhiteFideId "24139750"]
[BlackFideId "13429990"]
[WhiteElo "2085"]
[BlackElo "1571"]
[Result "1-0"]
[Round "10"]
[TimeControl "180+2"]
[Date "2023.01.03"]
[WhiteClock "0:01:21"]
[BlackClock "0:01:25"]

1. Nf3 {[%clk 0:02:59]}  d5 {[%clk 0:02:58]} 2. g3 {[%clk 0:02:59]}  Nf6 {[%clk 0:02:56]} 3. Bg2 {[%clk 0:02:59]}  Bg4 {[%clk 0:02:57]} 4. O-O {[%clk 0:02:58]}  e6 {[%clk 0:02:53]} 5. h3 {[%clk 0:02:58]}  Bf5 {[%clk 0:02:53]} 6. d3 {[%clk 0:02:54]}  c5 {[%clk 0:02:50]} 7. c4 {[%clk 0:02:53]}  Nc6 {[%clk 0:02:49]} 8. cxd5 {[%clk 0:02:49]}  exd5 {[%clk 0:02:50]} 9. Nc3 {[%clk 0:02:48]}  Bd6 {[%clk 0:02:44]} 10. e4 {[%clk 0:02:42]}  dxe4 {[%clk 0:02:38]} 11. dxe4 {[%clk 0:02:41]}  Be6 {[%clk 0:02:38]} 12. Re1 {[%clk 0:02:34]}  Ne5 {[%clk 0:02:33]} 13. Nxe5 {[%clk 0:02:27]}  Bxe5 {[%clk 0:02:33]} 14. Be3 {[%clk 0:02:26]}  Qe7 {[%clk 0:02:24]} 15. Qa4+ {[%clk 0:02:21]}  Bd7 {[%clk 0:02:23]} 16. Qb3 {[%clk 0:02:20]}  Bc6 {[%clk 0:02:21]} 17. Nd5 {[%clk 0:02:17]}  Qd7 {[%clk 0:02:07]} 18. Bxc5 {[%clk 0:02:10]}  b6 {[%clk 0:01:59]} 19. Ba3 {[%clk 0:01:56]}  Qe6 {[%clk 0:01:46]} 20. f4 {[%clk 0:01:37]}  Bd6 {[%clk 0:01:36]} 21. Nxf6+ {[%clk 0:01:30]}  gxf6 {[%clk 0:01:31]} 22. Qxe6+ {[%clk 0:01:28]}  fxe6 {[%clk 0:01:29]} 23. Bxd6 {[%clk 0:01:28]}  Rc8 {[%clk 0:01:27]} 24. Rac1 {[%clk 0:01:26]}  Kd7 {[%clk 0:01:26]} 25. e5 {[%clk 0:01:26]}  Bxg2 {[%clk 0:01:25]} 26. Kxg2 {[%clk 0:01:24]}  fxe5 {[%clk 0:01:24]} 27. Bxe5 {[%clk 0:01:23]}  Rxc1 {[%clk 0:01:23]} 28. Rxc1 {[%clk 0:01:23]}  Rg8 {[%clk 0:01:24]} 29. Rc7+ {[%clk 0:01:21]}  Kd8 {[%clk 0:01:25]} 30. Rxa7 {[%clk 0:01:21]} 1-0


[Site "https://www.chess.com"]

[Event "Titled Tuesday Blitz January 03 Early 2023"]
[White "monkins"]
[Black "Johnson, Ben"]
[BlackFideId "2010917"]
[WhiteElo "2242"]
[BlackElo "1961"]
[Result "0-1"]
[Round "10"]
[TimeControl "180+2"]
[Date "2023.01.03"]
[WhiteClock "0:00:02"]
[BlackClock "0:00:27"]

1. Nf3 {[%clk 0:03:00]}  d5 {[%clk 0:02:59]} 2. c4 {[%clk 0:03:00]}  e6 {[%clk 0:02:58]} 3. g3 {[%clk 0:03:00]}  Nf6 {[%clk 0:02:54]} 4. Bg2 {[%clk 0:03:00]}  dxc4 {[%clk 0:02:52]} 5. Qa4+ {[%clk 0:02:59]}  Bd7 {[%clk 0:02:51]} 6. Qxc4 {[%clk 0:03:00]}  c5 {[%clk 0:02:50]} 7. Ne5 {[%clk 0:02:58]}  Qc8 {[%clk 0:02:50]} 8. O-O {[%clk 0:02:52]}  Nc6 {[%clk 0:02:49]} 9. Nxd7 {[%clk 0:02:52]}  Qxd7 {[%clk 0:02:35]} 10. d3 {[%clk 0:02:52]}  Be7 {[%clk 0:02:32]} 11. Be3 {[%clk 0:02:51]}  Rc8 {[%clk 0:02:19]} 12. a3 {[%clk 0:02:16]}  O-O {[%clk 0:02:07]} 13. Nc3 {[%clk 0:02:10]}  b6 {[%clk 0:02:00]} 14. Rac1 {[%clk 0:02:09]}  Rfd8 {[%clk 0:01:51]} 15. Rfe1 {[%clk 0:02:05]}  Nd5 {[%clk 0:01:46]} 16. Bd2 {[%clk 0:02:00]}  Na5 {[%clk 0:01:42]} 17. Qa2 {[%clk 0:01:54]}  Nc6 {[%clk 0:01:24]} 18. Rb1 {[%clk 0:01:39]}  Bf6 {[%clk 0:01:22]} 19. Nxd5 {[%clk 0:01:34]}  exd5 {[%clk 0:01:23]} 20. b4 {[%clk 0:01:33]}  Nd4 {[%clk 0:01:20]} 21. bxc5 {[%clk 0:01:28]}  Rxc5 {[%clk 0:01:18]} 22. Rbc1 {[%clk 0:01:14]}  Rdc8 {[%clk 0:01:18]} 23. Rxc5 {[%clk 0:00:41]}  Rxc5 {[%clk 0:01:19]} 24. Be3 {[%clk 0:00:20]}  Rc2 {[%clk 0:01:14]} 25. Qxd5 {[%clk 0:00:17]}  Qxd5 {[%clk 0:01:07]} 26. Bxd5 {[%clk 0:00:18]}  Nxe2+ {[%clk 0:00:59]} 27. Kf1 {[%clk 0:00:18]}  Nc3 {[%clk 0:00:59]} 28. Bd4 {[%clk 0:00:07]}  Kf8 {[%clk 0:00:35]} 29. Bxf6 {[%clk 0:00:06]}  Nxd5 {[%clk 0:00:31]} 30. Be5 {[%clk 0:00:05]}  f6 {[%clk 0:00:29]} 31. Bd6+ {[%clk 0:00:05]}  Kf7 {[%clk 0:00:28]} 32. Bb8 {[%clk 0:00:03]}  a6 {[%clk 0:00:27]} 33. Re2 {[%clk 0:00:03]}  Rc3 {[%clk 0:00:27]} 34. Rd2 {[%clk 0:00:02]}  Rxa3 {[%clk 0:00:27]} 0-1


[Site "https://www.chess.com"]

[Event "Titled Tuesday Blitz January 03 Early 2023"]
[White "Blindsplieler"]
[Black "Gundam, Rohit"]
[BlackFideId "75002809"]
[WhiteElo "2071"]
[BlackElo "2058"]
[Result "0-1"]
[Round "10"]
[TimeControl "180+2"]
[Date "2023.01.03"]
[WhiteClock "0:01:54"]
[BlackClock "0:02:56"]

1. d4 {[%clk 0:03:00]}  Nf6 {[%clk 0:03:00]} 2. c4 {[%clk 0:03:00]}  e6 {[%clk 0:03:00]} 3. g3 {[%clk 0:02:59]}  Bb4+ {[%clk 0:03:01]} 4. Bd2 {[%clk 0:02:59]}  Qe7 {[%clk 0:03:01]} 5. Nf3 {[%clk 0:02:58]}  Nc6 {[%clk 0:03:01]} 6. Nc3 {[%clk 0:02:57]}  Bxc3 {[%clk 0:02:59]} 7. Bxc3 {[%clk 0:02:57]}  Ne4 {[%clk 0:03:00]} 8. Rc1 {[%clk 0:02:56]}  d6 {[%clk 0:02:58]} 9. Bg2 {[%clk 0:02:56]}  O-O {[%clk 0:02:57]} 10. O-O {[%clk 0:02:56]}  Nxc3 {[%clk 0:02:57]} 11. Rxc3 {[%clk 0:02:56]}  e5 {[%clk 0:02:58]} 12. d5 {[%clk 0:02:55]}  Nd8 {[%clk 0:02:57]} 13. e4 {[%clk 0:02:55]}  b6 {[%clk 0:02:57]} 14. b4 {[%clk 0:02:55]}  a5 {[%clk 0:02:58]} 15. a3 {[%clk 0:02:55]}  axb4 {[%clk 0:02:58]} 16. axb4 {[%clk 0:02:54]}  Nb7 {[%clk 0:02:59]} 17. Ne1 {[%clk 0:02:54]}  Ra2 {[%clk 0:02:57]} 18. Nd3 {[%clk 0:02:53]}  Bd7 {[%clk 0:02:57]} 19. f4 {[%clk 0:02:43]}  Rfa8 {[%clk 0:02:56]} 20. c5 {[%clk 0:02:35]}  bxc5 {[%clk 0:02:56]} 21. bxc5 {[%clk 0:02:34]}  Bb5 {[%clk 0:02:56]} 22. c6 {[%clk 0:02:29]}  Nc5 {[%clk 0:02:56]} 23. Nxc5 {[%clk 0:02:15]}  Bxf1 {[%clk 0:02:55]} 24. Bxf1 {[%clk 0:02:10]}  dxc5 {[%clk 0:02:55]} 25. fxe5 {[%clk 0:02:06]}  Qxe5 {[%clk 0:02:56]} 26. Bg2 {[%clk 0:01:55]}  Ra1 {[%clk 0:02:55]} 27. Rc1 {[%clk 0:01:54]}  Rxc1 {[%clk 0:02:55]} 28. Qxc1 {[%clk 0:01:54]}  Ra1 {[%clk 0:02:56]} 0-1


[Site "https://www.chess.com"]

[Event "Titled Tuesday Blitz January 03 Early 2023"]
[White "Tarnowska, Aleksandra"]
[Black "Necula, Iulian"]
[WhiteFideId "1180967"]
[BlackFideId "1232380"]
[WhiteElo "1835"]
[BlackElo "1851"]
[Result "0-1"]
[Round "10"]
[TimeControl "180+2"]
[Date "2023.01.03"]
[WhiteClock "0:00:01"]
[BlackClock "0:00:49"]

1. e4 {[%clk 0:03:00]}  c5 {[%clk 0:02:59]} 2. Nf3 {[%clk 0:03:00]}  d6 {[%clk 0:02:59]} 3. Bb5+ {[%clk 0:02:59]}  Bd7 {[%clk 0:02:58]} 4. Bxd7+ {[%clk 0:02:59]}  Nxd7 {[%clk 0:02:58]} 5. O-O {[%clk 0:02:59]}  Ngf6 {[%clk 0:02:58]} 6. c3 {[%clk 0:03:00]}  g6 {[%clk 0:02:58]} 7. Re1 {[%clk 0:02:59]}  Bg7 {[%clk 0:02:57]} 8. d4 {[%clk 0:02:59]}  cxd4 {[%clk 0:02:55]} 9. cxd4 {[%clk 0:03:00]}  O-O {[%clk 0:02:55]} 10. Nc3 {[%clk 0:02:58]}  a6 {[%clk 0:02:53]} 11. Bg5 {[%clk 0:02:55]}  h6 {[%clk 0:02:52]} 12. Be3 {[%clk 0:02:52]}  Ng4 {[%clk 0:02:49]} 13. Qd2 {[%clk 0:02:42]}  Nxe3 {[%clk 0:02:48]} 14. Qxe3 {[%clk 0:02:39]}  Rc8 {[%clk 0:02:38]} 15. Rad1 {[%clk 0:02:26]}  Qb6 {[%clk 0:02:37]} 16. Na4 {[%clk 0:02:21]}  Qa7 {[%clk 0:02:23]} 17. Rc1 {[%clk 0:02:02]}  b5 {[%clk 0:02:22]} 18. Nc3 {[%clk 0:02:00]}  Nf6 {[%clk 0:02:10]} 19. h3 {[%clk 0:01:50]}  Rc4 {[%clk 0:02:09]} 20. Nd5 {[%clk 0:01:25]}  Rfc8 {[%clk 0:01:58]} 21. Rxc4 {[%clk 0:01:19]}  Rxc4 {[%clk 0:01:59]} 22. Nxf6+ {[%clk 0:01:11]}  Bxf6 {[%clk 0:01:58]} 23. e5 {[%clk 0:01:10]}  dxe5 {[%clk 0:01:57]} 24. dxe5 {[%clk 0:00:45]}  Qxe3 {[%clk 0:01:56]} 25. Rxe3 {[%clk 0:00:45]}  Bg7 {[%clk 0:01:50]} 26. Re2 {[%clk 0:00:45]}  Rc1+ {[%clk 0:01:35]} 27. Kh2 {[%clk 0:00:45]}  b4 {[%clk 0:01:30]} 28. Nd4 {[%clk 0:00:38]}  Ra1 {[%clk 0:01:22]} 29. Nc6 {[%clk 0:00:32]}  Rxa2 {[%clk 0:01:14]} 30. Nxb4 {[%clk 0:00:32]}  Ra1 {[%clk 0:01:14]} 31. Nc6 {[%clk 0:00:26]}  Bf8 {[%clk 0:01:12]} 32. e6 {[%clk 0:00:20]}  a5 {[%clk 0:01:06]} 33. exf7+ {[%clk 0:00:15]}  Kxf7 {[%clk 0:01:07]} 34. Ne5+ {[%clk 0:00:16]}  Kg7 {[%clk 0:01:04]} 35. Nd7 {[%clk 0:00:15]}  Ra4 {[%clk 0:00:53]} 36. f3 {[%clk 0:00:14]}  Rf4 {[%clk 0:00:52]} 37. Re5 {[%clk 0:00:13]}  Rf5 {[%clk 0:00:51]} 38. Rxf5 {[%clk 0:00:06]}  gxf5 {[%clk 0:00:52]} 39. b3 {[%clk 0:00:06]}  Kf7 {[%clk 0:00:51]} 40. Nc5 {[%clk 0:00:04]}  Bg7 {[%clk 0:00:49]} 41. Nb7 {[%clk 0:00:01]}  Be5+ {[%clk 0:00:49]} 0-1


[Site "https://www.chess.com"]

[Event "Titled Tuesday Blitz January 03 Early 2023"]
[White "Nakamura, Hikaru"]
[Black "Carlsen, Magnus"]
[WhiteFideId "2016192"]
[BlackFideId "1503014"]
[WhiteElo "2775"]
[BlackElo "2853"]
[Result "1-0"]
[Round "11"]
[TimeControl "180+2"]
[Date "2023.01.03"]
[WhiteClock "0:00:02"]
[BlackClock "0:00:01"]

1. a3 {[%clk 0:03:00]}  g6 {[%clk 0:02:53]} 2. e4 {[%clk 0:02:58]}  c5 {[%clk 0:02:51]} 3. Bc4 {[%clk 0:02:47]}  Bg7 {[%clk 0:02:47]} 4. Nc3 {[%clk 0:02:47]}  Nc6 {[%clk 0:02:47]} 5. Nge2 {[%clk 0:02:47]}  e6 {[%clk 0:02:45]} 6. d3 {[%clk 0:02:42]}  Nge7 {[%clk 0:02:44]} 7. h4 {[%clk 0:02:40]}  h5 {[%clk 0:02:34]} 8. Bg5 {[%clk 0:02:38]}  d6 {[%clk 0:02:33]} 9. Qd2 {[%clk 0:02:37]}  Qd7 {[%clk 0:02:30]} 10. Ba2 {[%clk 0:02:25]}  b6 {[%clk 0:02:27]} 11. O-O-O {[%clk 0:02:22]}  Bb7 {[%clk 0:02:24]} 12. Kb1 {[%clk 0:02:22]}  O-O-O {[%clk 0:02:14]} 13. Qf4 {[%clk 0:02:15]}  f6 {[%clk 0:01:28]} 14. Bxf6 {[%clk 0:02:15]}  Rhf8 {[%clk 0:01:27]} 15. Bxg7 {[%clk 0:02:15]}  Rxf4 {[%clk 0:01:28]} 16. Nxf4 {[%clk 0:02:16]}  d5 {[%clk 0:01:29]} 17. Bf6 {[%clk 0:02:04]}  Rf8 {[%clk 0:01:26]} 18. Bg5 {[%clk 0:02:04]}  Nd4 {[%clk 0:01:26]} 19. f3 {[%clk 0:01:50]}  b5 {[%clk 0:01:14]} 20. Bxe7 {[%clk 0:01:44]}  Qxe7 {[%clk 0:01:02]} 21. Nxg6 {[%clk 0:01:44]}  Qg7 {[%clk 0:01:02]} 22. Nxf8 {[%clk 0:01:45]}  Qxf8 {[%clk 0:01:03]} 23. Rhe1 {[%clk 0:01:37]}  Qg8 {[%clk 0:00:56]} 24. exd5 {[%clk 0:01:24]}  Qxg2 {[%clk 0:00:53]} 25. dxe6 {[%clk 0:01:17]}  Qxc2+ {[%clk 0:00:53]} 26. Ka1 {[%clk 0:01:18]}  Bc6 {[%clk 0:00:53]} 27. e7 {[%clk 0:01:05]}  Be8 {[%clk 0:00:53]} 28. Ne4 {[%clk 0:00:55]}  Qh2 {[%clk 0:00:52]} 29. Rh1 {[%clk 0:00:49]}  Qe5 {[%clk 0:00:45]} 30. Rc1 {[%clk 0:00:47]}  c4 {[%clk 0:00:45]} 31. dxc4 {[%clk 0:00:41]}  b4 {[%clk 0:00:44]} 32. axb4 {[%clk 0:00:38]}  Qxe7 {[%clk 0:00:44]} 33. c5 {[%clk 0:00:39]}  Ba4 {[%clk 0:00:43]} 34. Rhg1 {[%clk 0:00:32]}  Nc2+ {[%clk 0:00:38]} 35. Kb1 {[%clk 0:00:32]}  Nxb4 {[%clk 0:00:37]} 36. Nd6+ {[%clk 0:00:32]}  Kd7 {[%clk 0:00:35]} 37. Rc4 {[%clk 0:00:17]}  Qe3 {[%clk 0:00:26]} 38. c6+ {[%clk 0:00:09]}  Bxc6 {[%clk 0:00:14]} 39. Rd1 {[%clk 0:00:09]}  Qe2 {[%clk 0:00:07]} 40. Rcc1 {[%clk 0:00:05]}  Nd3 {[%clk 0:00:07]} 41. Nc4 {[%clk 0:00:04]}  Kc7 {[%clk 0:00:05]} 42. Rd2 {[%clk 0:00:04]}  Qxf3 {[%clk 0:00:05]} 43. Rcd1 {[%clk 0:00:02]}  Be4 {[%clk 0:00:05]} 44. Ka1 {[%clk 0:00:03]}  Qf4 {[%clk 0:00:02]} 45. Bb1 {[%clk 0:00:03]}  Nc5 {[%clk 0:00:02]} 46. Ba2 {[%clk 0:00:02]}  Bc6 {[%clk 0:00:01]} 47. Rc1 {[%clk 0:00:02]}  Bb5 {[%clk 0:00:01]} 48. Rc3 {[%clk 0:00:02]} 1-0


[Site "https://www.chess.com"]

[Event "Titled Tuesday Blitz January 03 Early 2023"]
[White "Dardha, Daniel"]
[Black "Martinez Alcantara, Jose Eduardo"]
[WhiteFideId "240990"]
[BlackFideId "3805662"]
[WhiteElo "2631"]
[BlackElo "2619"]
[Result "1/2-1/2"]
[Round "11"]
[TimeControl "180+2"]
[Date "2023.01.03"]
[WhiteClock "0:00:09"]
[BlackClock "0:00:03"]

1. d4 {[%clk 0:02:55]}  Nf6 {[%clk 0:03:00]} 2. Bg5 {[%clk 0:02:55]}  e6 {[%clk 0:03:00]} 3. Nd2 {[%clk 0:02:53]}  h6 {[%clk 0:03:00]} 4. Bxf6 {[%clk 0:02:52]}  Qxf6 {[%clk 0:03:01]} 5. Ngf3 {[%clk 0:02:52]}  d6 {[%clk 0:03:01]} 6. e4 {[%clk 0:02:52]}  g6 {[%clk 0:03:00]} 7. Bd3 {[%clk 0:02:52]}  Bg7 {[%clk 0:03:00]} 8. O-O {[%clk 0:02:53]}  Nd7 {[%clk 0:03:01]} 9. c3 {[%clk 0:02:53]}  O-O {[%clk 0:03:01]} 10. a4 {[%clk 0:02:50]}  e5 {[%clk 0:03:01]} 11. Nc4 {[%clk 0:02:46]}  Qe7 {[%clk 0:03:01]} 12. Ne3 {[%clk 0:02:46]}  c6 {[%clk 0:03:01]} 13. a5 {[%clk 0:02:46]}  Nf6 {[%clk 0:02:56]} 14. Re1 {[%clk 0:02:39]}  Rb8 {[%clk 0:02:49]} 15. h3 {[%clk 0:02:37]}  Re8 {[%clk 0:02:38]} 16. Qc2 {[%clk 0:02:32]}  Qc7 {[%clk 0:02:37]} 17. b4 {[%clk 0:02:29]}  Nh5 {[%clk 0:02:37]} 18. d5 {[%clk 0:02:22]}  Nf4 {[%clk 0:02:36]} 19. Bc4 {[%clk 0:02:22]}  Bd7 {[%clk 0:02:26]} 20. Bb3 {[%clk 0:02:17]}  c5 {[%clk 0:02:25]} 21. Ba4 {[%clk 0:02:08]}  Rec8 {[%clk 0:02:25]} 22. Bxd7 {[%clk 0:02:08]}  Qxd7 {[%clk 0:02:26]} 23. bxc5 {[%clk 0:02:04]}  Rxc5 {[%clk 0:02:25]} 24. c4 {[%clk 0:02:02]}  Qc7 {[%clk 0:02:21]} 25. Qa4 {[%clk 0:01:59]}  b6 {[%clk 0:02:08]} 26. axb6 {[%clk 0:01:56]}  axb6 {[%clk 0:02:09]} 27. Rab1 {[%clk 0:01:45]}  Ra5 {[%clk 0:02:04]} 28. Qc6 {[%clk 0:01:35]}  Qd8 {[%clk 0:02:00]} 29. g3 {[%clk 0:01:15]}  Nd3 {[%clk 0:01:50]} 30. Re2 {[%clk 0:00:59]}  h5 {[%clk 0:01:42]} 31. Rd2 {[%clk 0:00:51]}  Nc5 {[%clk 0:01:43]} 32. Rdb2 {[%clk 0:00:51]}  Ra6 {[%clk 0:01:24]} 33. Qb5 {[%clk 0:00:45]}  Ra3 {[%clk 0:01:08]} 34. Qb4 {[%clk 0:00:35]}  Ra7 {[%clk 0:01:06]} 35. Qb5 {[%clk 0:00:20]}  Nxe4 {[%clk 0:01:03]} 36. Qc6 {[%clk 0:00:20]}  Rc7 {[%clk 0:00:58]} 37. Qa4 {[%clk 0:00:07]}  Nc3 {[%clk 0:00:58]} 38. Qb3 {[%clk 0:00:06]}  Nxb1 {[%clk 0:00:57]} 39. Rxb1 {[%clk 0:00:07]}  Bh6 {[%clk 0:00:54]} 40. h4 {[%clk 0:00:06]}  Bxe3 {[%clk 0:00:52]} 41. Qxe3 {[%clk 0:00:06]}  Rxc4 {[%clk 0:00:49]} 42. Ng5 {[%clk 0:00:06]}  Kg7 {[%clk 0:00:38]} 43. Ra1 {[%clk 0:00:06]}  Rc7 {[%clk 0:00:36]} 44. Ra6 {[%clk 0:00:04]}  Rcb7 {[%clk 0:00:36]} 45. Ra3 {[%clk 0:00:01]}  b5 {[%clk 0:00:35]} 46. Rb3 {[%clk 0:00:02]}  b4 {[%clk 0:00:36]} 47. Qf3 {[%clk 0:00:02]}  Qf6 {[%clk 0:00:33]} 48. Qe4 {[%clk 0:00:02]}  Qf5 {[%clk 0:00:30]} 49. Qc4 {[%clk 0:00:02]}  Qg4 {[%clk 0:00:15]} 50. Qc6 {[%clk 0:00:02]}  Qd1+ {[%clk 0:00:15]} 51. Kg2 {[%clk 0:00:02]}  Qxb3 {[%clk 0:00:16]} 52. Qxd6 {[%clk 0:00:03]}  Re8 {[%clk 0:00:11]} 53. Ne4 {[%clk 0:00:02]}  Qc4 {[%clk 0:00:06]} 54. Qf6+ {[%clk 0:00:03]}  Kg8 {[%clk 0:00:07]} 55. Nd6 {[%clk 0:00:04]}  Qxd5+ {[%clk 0:00:07]} 56. Kh2 {[%clk 0:00:04]}  Rbe7 {[%clk 0:00:05]} 57. Nf5 {[%clk 0:00:03]}  gxf5 {[%clk 0:00:01]} 58. Qg5+ {[%clk 0:00:04]}  Kh8 {[%clk 0:00:02]} 59. Qh6+ {[%clk 0:00:04]}  Kg8 {[%clk 0:00:02]} 60. Qg5+ {[%clk 0:00:04]}  Kh7 {[%clk 0:00:02]} 61. Qxh5+ {[%clk 0:00:05]}  Kg7 {[%clk 0:00:03]} 62. Qg5+ {[%clk 0:00:05]}  Kf8 {[%clk 0:00:04]} 63. Qh6+ {[%clk 0:00:06]}  Kg8 {[%clk 0:00:05]} 64. Qg5+ {[%clk 0:00:07]}  Kh7 {[%clk 0:00:04]} 65. Qh5+ {[%clk 0:00:07]}  Kg7 {[%clk 0:00:05]} 66. Qg5+ {[%clk 0:00:08]}  Kh7 {[%clk 0:00:03]} 67. Qh5+ {[%clk 0:00:09]} 1/2-1/2


[Site "https://www.chess.com"]

[Event "Titled Tuesday Blitz January 03 Early 2023"]
[White "Lenderman, Aleksandr"]
[Black "Bortnyk, Olexandr"]
[WhiteFideId "2021285"]
[BlackFideId "14120828"]
[WhiteElo "2572"]
[BlackElo "2605"]
[Result "0-1"]
[Round "11"]
[TimeControl "180+2"]
[Date "2023.01.03"]
[WhiteClock "0:00:35"]
[BlackClock "0:00:27"]

1. d4 {[%clk 0:03:00]}  d6 {[%clk 0:02:57]} 2. Nf3 {[%clk 0:02:59]}  Nf6 {[%clk 0:02:57]} 3. c4 {[%clk 0:02:59]}  g6 {[%clk 0:02:58]} 4. Nc3 {[%clk 0:02:59]}  Bf5 {[%clk 0:02:58]} 5. e3 {[%clk 0:02:57]}  Bg7 {[%clk 0:02:58]} 6. Bd3 {[%clk 0:02:57]}  Bxd3 {[%clk 0:02:59]} 7. Qxd3 {[%clk 0:02:58]}  O-O {[%clk 0:02:59]} 8. O-O {[%clk 0:02:58]}  Nbd7 {[%clk 0:02:59]} 9. b3 {[%clk 0:02:58]}  c6 {[%clk 0:02:56]} 10. Bb2 {[%clk 0:02:58]}  Re8 {[%clk 0:02:57]} 11. Rad1 {[%clk 0:02:58]}  Qa5 {[%clk 0:02:57]} 12. Qc2 {[%clk 0:02:57]}  Rad8 {[%clk 0:02:56]} 13. a3 {[%clk 0:02:55]}  Qh5 {[%clk 0:02:53]} 14. Nd2 {[%clk 0:02:47]}  d5 {[%clk 0:02:52]} 15. cxd5 {[%clk 0:02:45]}  cxd5 {[%clk 0:02:53]} 16. Nf3 {[%clk 0:02:45]}  Rc8 {[%clk 0:02:53]} 17. Qd3 {[%clk 0:02:44]}  Qf5 {[%clk 0:02:52]} 18. Qxf5 {[%clk 0:02:44]}  gxf5 {[%clk 0:02:53]} 19. Ne1 {[%clk 0:02:43]}  e6 {[%clk 0:02:49]} 20. Nd3 {[%clk 0:02:43]}  Ne4 {[%clk 0:02:49]} 21. Na2 {[%clk 0:02:34]}  a5 {[%clk 0:02:39]} 22. f3 {[%clk 0:02:33]}  Nd6 {[%clk 0:02:40]} 23. Rc1 {[%clk 0:02:27]}  Bh6 {[%clk 0:02:39]} 24. Kf2 {[%clk 0:02:26]}  a4 {[%clk 0:02:26]} 25. Nc5 {[%clk 0:02:26]}  axb3 {[%clk 0:02:24]} 26. Nxd7 {[%clk 0:02:26]}  bxa2 {[%clk 0:02:05]} 27. Nf6+ {[%clk 0:02:25]}  Kg7 {[%clk 0:01:53]} 28. Nxe8+ {[%clk 0:02:26]}  Rxe8 {[%clk 0:01:53]} 29. Ra1 {[%clk 0:02:04]}  Nc4 {[%clk 0:01:43]} 30. Bc1 {[%clk 0:02:04]}  Ra8 {[%clk 0:01:38]} 31. Rxa2 {[%clk 0:02:02]}  b5 {[%clk 0:01:39]} 32. Re2 {[%clk 0:01:52]}  Kg6 {[%clk 0:01:29]} 33. Rfe1 {[%clk 0:01:41]}  Ra4 {[%clk 0:01:21]} 34. h4 {[%clk 0:01:29]}  Bf8 {[%clk 0:01:16]} 35. e4 {[%clk 0:01:29]}  fxe4 {[%clk 0:01:01]} 36. fxe4 {[%clk 0:01:30]}  dxe4 {[%clk 0:00:46]} 37. Rxe4 {[%clk 0:01:28]}  Bxa3 {[%clk 0:00:47]} 38. Rg4+ {[%clk 0:01:24]}  Kf6 {[%clk 0:00:42]} 39. Bg5+ {[%clk 0:01:21]}  Kf5 {[%clk 0:00:42]} 40. Kg3 {[%clk 0:00:58]}  Bd6+ {[%clk 0:00:39]} 41. Kh3 {[%clk 0:00:59]}  Ra3+ {[%clk 0:00:38]} 42. g3 {[%clk 0:00:59]}  h5 {[%clk 0:00:37]} 43. Rf1+ {[%clk 0:00:59]}  Kg6 {[%clk 0:00:37]} 44. Rf6+ {[%clk 0:00:38]}  Kg7 {[%clk 0:00:37]} 45. Rgf4 {[%clk 0:00:39]}  Bxf4 {[%clk 0:00:36]} 46. Rxf4 {[%clk 0:00:40]}  Rd3 {[%clk 0:00:28]} 47. Be7 {[%clk 0:00:37]}  f5 {[%clk 0:00:27]} 48. Kg2 {[%clk 0:00:35]}  Ne3+ {[%clk 0:00:26]} 49. Kf2 {[%clk 0:00:35]}  Nd5 {[%clk 0:00:27]} 0-1


[Site "https://www.chess.com"]

[Event "Titled Tuesday Blitz January 03 Early 2023"]
[White "Grigoriants, Sergey"]
[Black "Sarana, Alexey"]
[WhiteFideId "4130804"]
[BlackFideId "24133795"]
[WhiteElo "2562"]
[BlackElo "2685"]
[Result "1-0"]
[Round "11"]
[TimeControl "180+2"]
[Date "2023.01.03"]
[WhiteClock "0:00:43"]
[BlackClock "0:00:01"]

1. c4 {[%clk 0:03:00]}  e6 {[%clk 0:02:59]} 2. Nc3 {[%clk 0:03:00]}  d5 {[%clk 0:03:00]} 3. d4 {[%clk 0:03:00]}  Nf6 {[%clk 0:03:01]} 4. cxd5 {[%clk 0:02:57]}  exd5 {[%clk 0:03:02]} 5. Bg5 {[%clk 0:02:57]}  c6 {[%clk 0:03:02]} 6. e3 {[%clk 0:02:57]}  Bf5 {[%clk 0:03:03]} 7. Qf3 {[%clk 0:02:57]}  Bg6 {[%clk 0:03:03]} 8. Bxf6 {[%clk 0:02:57]}  Qxf6 {[%clk 0:03:04]} 9. Qxf6 {[%clk 0:02:57]}  gxf6 {[%clk 0:03:05]} 10. Nf3 {[%clk 0:02:49]}  Nd7 {[%clk 0:03:04]} 11. Nh4 {[%clk 0:02:49]}  Be7 {[%clk 0:03:04]} 12. g3 {[%clk 0:02:46]}  f5 {[%clk 0:03:02]} 13. Ng2 {[%clk 0:02:43]}  a5 {[%clk 0:02:59]} 14. Nf4 {[%clk 0:02:39]}  Bd6 {[%clk 0:02:56]} 15. Kd2 {[%clk 0:02:37]}  Ke7 {[%clk 0:02:57]} 16. Bd3 {[%clk 0:02:36]}  a4 {[%clk 0:02:56]} 17. f3 {[%clk 0:02:33]}  Ra5 {[%clk 0:02:51]} 18. Rhe1 {[%clk 0:02:29]}  Kf6 {[%clk 0:02:38]} 19. Re2 {[%clk 0:02:27]}  Rha8 {[%clk 0:02:35]} 20. Rae1 {[%clk 0:02:17]}  Nf8 {[%clk 0:02:32]} 21. Nxg6 {[%clk 0:01:40]}  hxg6 {[%clk 0:02:29]} 22. e4 {[%clk 0:01:41]}  fxe4 {[%clk 0:01:20]} 23. fxe4 {[%clk 0:01:42]}  Bb4 {[%clk 0:01:20]} 24. Rf1+ {[%clk 0:01:33]}  Kg7 {[%clk 0:01:20]} 25. Ref2 {[%clk 0:01:34]}  a3 {[%clk 0:00:39]} 26. Rxf7+ {[%clk 0:01:33]}  Kg8 {[%clk 0:00:40]} 27. b3 {[%clk 0:01:34]}  c5 {[%clk 0:00:27]} 28. Kc2 {[%clk 0:01:30]}  Bxc3 {[%clk 0:00:26]} 29. Kxc3 {[%clk 0:01:30]}  cxd4+ {[%clk 0:00:26]} 30. Kxd4 {[%clk 0:01:24]}  Ne6+ {[%clk 0:00:26]} 31. Ke3 {[%clk 0:01:24]}  d4+ {[%clk 0:00:07]} 32. Kd2 {[%clk 0:01:19]}  Nc5 {[%clk 0:00:07]} 33. Bc4 {[%clk 0:01:14]}  Kh8 {[%clk 0:00:04]} 34. Re7 {[%clk 0:01:08]}  Rd8 {[%clk 0:00:02]} 35. Rff7 {[%clk 0:01:06]}  Nxe4+ {[%clk 0:00:01]} 36. Rxe4 {[%clk 0:01:05]}  Rh5 {[%clk 0:00:02]} 37. h4 {[%clk 0:01:05]}  b5 {[%clk 0:00:02]} 38. Bd3 {[%clk 0:01:01]}  g5 {[%clk 0:00:03]} 39. Re5 {[%clk 0:01:00]}  Kg8 {[%clk 0:00:03]} 40. Rb7 {[%clk 0:00:58]}  Rf8 {[%clk 0:00:01]} 41. Rxg5+ {[%clk 0:00:53]}  Rxg5 {[%clk 0:00:01]} 42. hxg5 {[%clk 0:00:54]}  Rf2+ {[%clk 0:00:02]} 43. Be2 {[%clk 0:00:55]}  Rg2 {[%clk 0:00:01]} 44. Rxb5 {[%clk 0:00:54]}  Rxg3 {[%clk 0:00:02]} 45. Ra5 {[%clk 0:00:54]}  Kg7 {[%clk 0:00:01]} 46. Rxa3 {[%clk 0:00:54]}  Rxg5 {[%clk 0:00:02]} 47. Ra4 {[%clk 0:00:54]}  Rd5 {[%clk 0:00:02]} 48. Kd3 {[%clk 0:00:53]}  Kf6 {[%clk 0:00:03]} 49. Rxd4 {[%clk 0:00:53]}  Rg5 {[%clk 0:00:03]} 50. Bf3 {[%clk 0:00:52]}  Ke6 {[%clk 0:00:04]} 51. a4 {[%clk 0:00:52]}  Rg1 {[%clk 0:00:04]} 52. a5 {[%clk 0:00:51]}  Ra1 {[%clk 0:00:05]} 53. Ra4 {[%clk 0:00:50]}  Rf1 {[%clk 0:00:04]} 54. Ke2 {[%clk 0:00:50]}  Rb1 {[%clk 0:00:01]} 55. a6 {[%clk 0:00:49]}  Rb2+ {[%clk 0:00:02]} 56. Ke3 {[%clk 0:00:43]}  Rxb3+ {[%clk 0:00:02]} 57. Kf4 {[%clk 0:00:44]}  Kd6 {[%clk 0:00:01]} 58. a7 {[%clk 0:00:43]} 1-0


[Site "https://www.chess.com"]